[Event "Titled Tuesday Blitz January 03 Early 2023"]
[White "Schut, Han"]
[Black "Kopczynski, Michal"]
[WhiteFideId "1005561"]
[BlackFideId "1124200"]
[WhiteElo "2101"]
[BlackElo "2225"]
[Result "0-1"]
[Round "03"]
[TimeControl "180+2"]
[Date "2023.01.03"]
[WhiteClock "0:00:07"]
[BlackClock "0:00:11"]

1. e4 {[%clk 0:02:56]}  b6 {[%clk 0:02:59]} 2. d4 {[%clk 0:02:55]}  Bb7 {[%clk 0:03:00]} 3. Bd3 {[%clk 0:02:56]}  e6 {[%clk 0:03:01]} 4. Qe2 {[%clk 0:02:56]}  Nf6 {[%clk 0:03:02]} 5. f4 {[%clk 0:02:56]}  d5 {[%clk 0:03:02]} 6. e5 {[%clk 0:02:57]}  Nfd7 {[%clk 0:03:03]} 7. f5 {[%clk 0:02:55]}  g6 {[%clk 0:02:57]} 8. fxe6 {[%clk 0:02:51]}  fxe6 {[%clk 0:02:58]} 9. Nf3 {[%clk 0:02:47]}  Be7 {[%clk 0:02:55]} 10. h4 {[%clk 0:02:38]}  c5 {[%clk 0:02:53]} 11. c3 {[%clk 0:02:34]}  Nc6 {[%clk 0:02:53]} 12. h5 {[%clk 0:02:34]}  g5 {[%clk 0:02:53]} 13. h6 {[%clk 0:02:29]}  cxd4 {[%clk 0:02:41]} 14. Nxg5 {[%clk 0:02:27]}  Ndxe5 {[%clk 0:02:25]} 15. Nxe6 {[%clk 0:02:07]}  Qd6 {[%clk 0:02:04]} 16. Ng7+ {[%clk 0:01:52]}  Kd8 {[%clk 0:02:02]} 17. Bf5 {[%clk 0:01:24]}  d3 {[%clk 0:01:50]} 18. Qh5 {[%clk 0:01:19]}  Kc7 {[%clk 0:01:48]} 19. O-O {[%clk 0:01:06]}  Rag8 {[%clk 0:01:35]} 20. Bf4 {[%clk 0:01:03]}  Bf6 {[%clk 0:01:14]} 21. Nd2 {[%clk 0:00:39]}  Kb8 {[%clk 0:01:10]} 22. Rae1 {[%clk 0:00:36]}  Ka8 {[%clk 0:01:08]} 23. Nf3 {[%clk 0:00:29]}  Nxf3+ {[%clk 0:00:41]} 24. Rxf3 {[%clk 0:00:28]}  Qc5+ {[%clk 0:00:39]} 25. Be3 {[%clk 0:00:25]}  d2 {[%clk 0:00:35]} 26. Rd1 {[%clk 0:00:21]}  d4 {[%clk 0:00:36]} 27. cxd4 {[%clk 0:00:20]}  Nxd4 {[%clk 0:00:34]} 28. Rxd2 {[%clk 0:00:18]}  Nxf3+ {[%clk 0:00:33]} 29. Kf2 {[%clk 0:00:19]}  Qb4 {[%clk 0:00:17]} 30. gxf3 {[%clk 0:00:18]}  Bh4+ {[%clk 0:00:17]} 31. Kg2 {[%clk 0:00:16]}  Rd8 {[%clk 0:00:16]} 32. Rxd8+ {[%clk 0:00:12]}  Rxd8 {[%clk 0:00:17]} 33. Ne6 {[%clk 0:00:10]}  Rc8 {[%clk 0:00:15]} 34. Bf4 {[%clk 0:00:08]}  Qxb2+ {[%clk 0:00:14]} 35. Kh3 {[%clk 0:00:08]}  Bd8 {[%clk 0:00:13]} 36. Nxd8 {[%clk 0:00:08]}  Rxd8 {[%clk 0:00:14]} 37. Qf7 {[%clk 0:00:08]}  a5 {[%clk 0:00:12]} 38. Be4 {[%clk 0:00:08]}  Bxe4 {[%clk 0:00:10]} 39. fxe4 {[%clk 0:00:09]}  Qa3+ {[%clk 0:00:10]} 40. Kg4 {[%clk 0:00:09]}  Qf8 {[%clk 0:00:11]} 41. Qe6 {[%clk 0:00:07]}  Qg8+ {[%clk 0:00:11]} 42. Kf3 {[%clk 0:00:07]}  Qxe6 {[%clk 0:00:11]} 0-1


[Site "https://www.chess.com"]

[Event "Titled Tuesday Blitz January 03 Early 2023"]
[White "Carlstedt, Jonathan"]
[Black "Brown, Andrew"]
[WhiteFideId "24614386"]
[BlackFideId "3206513"]
[WhiteElo "2441"]
[BlackElo "2279"]
[Result "1-0"]
[Round "03"]
[TimeControl "180+2"]
[Date "2023.01.03"]
[WhiteClock "0:01:23"]
[BlackClock "0:00:02"]

1. c4 {[%clk 0:03:00]}  e5 {[%clk 0:02:59]} 2. g3 {[%clk 0:03:00]}  Nc6 {[%clk 0:02:59]} 3. Bg2 {[%clk 0:02:57]}  d6 {[%clk 0:02:58]} 4. Nc3 {[%clk 0:02:57]}  g6 {[%clk 0:02:58]} 5. e4 {[%clk 0:02:55]}  Bg7 {[%clk 0:02:57]} 6. Nge2 {[%clk 0:02:54]}  Nd4 {[%clk 0:02:52]} 7. O-O {[%clk 0:02:51]}  Ne7 {[%clk 0:02:47]} 8. d3 {[%clk 0:02:48]}  O-O {[%clk 0:02:44]} 9. f4 {[%clk 0:02:47]}  c6 {[%clk 0:02:26]} 10. Be3 {[%clk 0:02:41]}  Bg4 {[%clk 0:02:17]} 11. Qd2 {[%clk 0:02:38]}  Qd7 {[%clk 0:02:13]} 12. Rf2 {[%clk 0:02:36]}  f5 {[%clk 0:01:46]} 13. Raf1 {[%clk 0:02:33]}  Nxe2+ {[%clk 0:01:20]} 14. Nxe2 {[%clk 0:02:31]}  fxe4 {[%clk 0:01:06]} 15. dxe4 {[%clk 0:02:25]}  exf4 {[%clk 0:00:55]} 16. gxf4 {[%clk 0:02:22]}  Bh3 {[%clk 0:00:47]} 17. Ng3 {[%clk 0:02:20]}  Bxg2 {[%clk 0:00:44]} 18. Kxg2 {[%clk 0:02:18]}  d5 {[%clk 0:00:42]} 19. cxd5 {[%clk 0:02:12]}  cxd5 {[%clk 0:00:42]} 20. e5 {[%clk 0:02:12]}  h6 {[%clk 0:00:26]} 21. Bc5 {[%clk 0:02:05]}  Rad8 {[%clk 0:00:20]} 22. Bxe7 {[%clk 0:02:02]}  Qxe7 {[%clk 0:00:19]} 23. Qd4 {[%clk 0:02:02]}  b6 {[%clk 0:00:15]} 24. Rd1 {[%clk 0:01:55]}  Kh7 {[%clk 0:00:14]} 25. b3 {[%clk 0:01:53]}  Qc5 {[%clk 0:00:14]} 26. Qxc5 {[%clk 0:01:49]}  bxc5 {[%clk 0:00:15]} 27. e6 {[%clk 0:01:44]}  Rfe8 {[%clk 0:00:13]} 28. Re2 {[%clk 0:01:43]}  Rd6 {[%clk 0:00:11]} 29. f5 {[%clk 0:01:42]}  gxf5 {[%clk 0:00:10]} 30. Nxf5 {[%clk 0:01:36]}  Rdxe6 {[%clk 0:00:09]} 31. Rxe6 {[%clk 0:01:36]}  Rxe6 {[%clk 0:00:09]} 32. Rxd5 {[%clk 0:01:37]}  Bd4 {[%clk 0:00:05]} 33. Kf3 {[%clk 0:01:33]}  Bg1 {[%clk 0:00:03]} 34. h4 {[%clk 0:01:32]}  Kg6 {[%clk 0:00:03]} 35. h5+ {[%clk 0:01:27]}  Kf6 {[%clk 0:00:03]} 36. Nxh6 {[%clk 0:01:26]}  Re3+ {[%clk 0:00:03]} 37. Kf4 {[%clk 0:01:26]}  Re1 {[%clk 0:00:02]} 38. Ng4+ {[%clk 0:01:24]}  Ke7 {[%clk 0:00:02]} 39. Re5+ {[%clk 0:01:23]}  Kf7 {[%clk 0:00:02]} 40. Rxe1 {[%clk 0:01:23]} 1-0


[Site "https://www.chess.com"]

[Event "Titled Tuesday Blitz January 03 Early 2023"]
[White "Tymrakiewicz, Rafal"]
[Black "Samaganova, Aleksandra"]
[WhiteFideId "1108832"]
[BlackFideId "13800221"]
[WhiteElo "2144"]
[BlackElo "1856"]
[Result "0-1"]
[Round "03"]
[TimeControl "180+2"]
[Date "2023.01.03"]
[WhiteClock "0:00:02"]
[BlackClock "0:00:15"]

1. d4 {[%clk 0:03:00]}  Nf6 {[%clk 0:02:58]} 2. Bg5 {[%clk 0:02:58]}  e6 {[%clk 0:02:56]} 3. Nd2 {[%clk 0:02:43]}  c5 {[%clk 0:02:55]} 4. e3 {[%clk 0:02:43]}  Nc6 {[%clk 0:02:54]} 5. Ngf3 {[%clk 0:02:32]}  Be7 {[%clk 0:02:54]} 6. Bd3 {[%clk 0:02:30]}  d5 {[%clk 0:02:41]} 7. c3 {[%clk 0:02:28]}  h6 {[%clk 0:02:40]} 8. Bh4 {[%clk 0:02:26]}  O-O {[%clk 0:02:38]} 9. Ne5 {[%clk 0:02:25]}  Nxe5 {[%clk 0:02:33]} 10. dxe5 {[%clk 0:02:26]}  Nd7 {[%clk 0:02:33]} 11. Bg3 {[%clk 0:02:26]}  Rb8 {[%clk 0:02:21]} 12. Qh5 {[%clk 0:02:21]}  b5 {[%clk 0:02:16]} 13. f4 {[%clk 0:02:21]}  b4 {[%clk 0:02:10]} 14. c4 {[%clk 0:02:20]}  dxc4 {[%clk 0:02:06]} 15. Bxc4 {[%clk 0:02:15]}  Nb6 {[%clk 0:02:03]} 16. Rd1 {[%clk 0:02:04]}  Qc7 {[%clk 0:01:53]} 17. Bd3 {[%clk 0:02:01]}  c4 {[%clk 0:01:52]} 18. Bc2 {[%clk 0:02:01]}  c3 {[%clk 0:01:46]} 19. bxc3 {[%clk 0:02:00]}  Qxc3 {[%clk 0:01:46]} 20. Rc1 {[%clk 0:01:50]}  Qxe3+ {[%clk 0:01:45]} 21. Qe2 {[%clk 0:01:34]}  Qxe2+ {[%clk 0:01:38]} 22. Kxe2 {[%clk 0:01:35]}  Ba6+ {[%clk 0:01:39]} 23. Kf3 {[%clk 0:01:33]}  Rfd8 {[%clk 0:01:36]} 24. Nb3 {[%clk 0:01:19]}  Nd5 {[%clk 0:01:19]} 25. Bf2 {[%clk 0:01:13]}  Nc3 {[%clk 0:01:11]} 26. Bxa7 {[%clk 0:01:00]}  Ra8 {[%clk 0:01:03]} 27. Bb6 {[%clk 0:00:56]}  Rdc8 {[%clk 0:00:44]} 28. Be4 {[%clk 0:00:53]}  Be2+ {[%clk 0:00:32]} 29. Ke3 {[%clk 0:00:50]}  Rxa2 {[%clk 0:00:32]} 30. Nd4 {[%clk 0:00:29]}  Bc4 {[%clk 0:00:26]} 31. Bf3 {[%clk 0:00:11]}  Rb8 {[%clk 0:00:18]} 32. Bc7 {[%clk 0:00:06]}  Rc8 {[%clk 0:00:18]} 33. Bb6 {[%clk 0:00:06]}  Bd5 {[%clk 0:00:16]} 34. Rc2 {[%clk 0:00:02]}  Ra3 {[%clk 0:00:15]} 35. Bxd5 {[%clk 0:00:01]}  Nxd5+ {[%clk 0:00:15]} 36. Kf2 {[%clk 0:00:02]}  Rxc2+ {[%clk 0:00:14]} 37. Nxc2 {[%clk 0:00:02]}  Ra2 {[%clk 0:00:15]} 0-1


[Site "https://www.chess.com"]

[Event "Titled Tuesday Blitz January 03 Early 2023"]
[White "Gulamali, Kazim"]
[Black "Md, Imran"]
[WhiteFideId "2024764"]
[BlackFideId "25748580"]
[WhiteElo "2243"]
[BlackElo "2284"]
[Result "0-1"]
[Round "03"]
[TimeControl "180+2"]
[Date "2023.01.03"]
[WhiteClock "0:00:59"]
[BlackClock "0:01:36"]

1. e4 {[%clk 0:02:13]}  c5 {[%clk 0:03:00]} 2. d4 {[%clk 0:02:13]}  cxd4 {[%clk 0:03:00]} 3. Nf3 {[%clk 0:02:14]}  Nc6 {[%clk 0:02:59]} 4. Nxd4 {[%clk 0:02:14]}  g6 {[%clk 0:02:59]} 5. Nc3 {[%clk 0:02:13]}  Bg7 {[%clk 0:02:59]} 6. Nb3 {[%clk 0:02:13]}  Nf6 {[%clk 0:02:59]} 7. g3 {[%clk 0:02:13]}  O-O {[%clk 0:02:59]} 8. Bg2 {[%clk 0:02:14]}  a5 {[%clk 0:03:00]} 9. a4 {[%clk 0:02:13]}  d6 {[%clk 0:03:00]} 10. O-O {[%clk 0:02:13]}  Nd7 {[%clk 0:03:00]} 11. Nd5 {[%clk 0:02:13]}  Nc5 {[%clk 0:03:00]} 12. c3 {[%clk 0:02:05]}  e6 {[%clk 0:02:58]} 13. Ne3 {[%clk 0:02:05]}  b6 {[%clk 0:02:49]} 14. Nd4 {[%clk 0:01:59]}  Bb7 {[%clk 0:02:47]} 15. Nb5 {[%clk 0:01:58]}  Ne7 {[%clk 0:02:29]} 16. Nxd6 {[%clk 0:01:56]}  Bc6 {[%clk 0:02:28]} 17. f4 {[%clk 0:01:53]}  e5 {[%clk 0:02:26]} 18. f5 {[%clk 0:01:53]}  gxf5 {[%clk 0:02:24]} 19. exf5 {[%clk 0:01:54]}  Bxg2 {[%clk 0:02:24]} 20. Kxg2 {[%clk 0:01:51]}  f6 {[%clk 0:02:13]} 21. Nb5 {[%clk 0:01:40]}  Kh8 {[%clk 0:02:12]} 22. Qxd8 {[%clk 0:01:34]}  Rfxd8 {[%clk 0:02:10]} 23. Nc4 {[%clk 0:01:35]}  Nd5 {[%clk 0:02:05]} 24. Be3 {[%clk 0:01:30]}  Nb3 {[%clk 0:02:03]} 25. Rad1 {[%clk 0:01:30]}  Rac8 {[%clk 0:02:01]} 26. Nbd6 {[%clk 0:01:29]}  Rxd6 {[%clk 0:02:01]} 27. Nxd6 {[%clk 0:01:28]}  Nxe3+ {[%clk 0:02:01]} 28. Kf3 {[%clk 0:01:27]}  Nxd1 {[%clk 0:01:53]} 29. Nxc8 {[%clk 0:01:20]}  Nd2+ {[%clk 0:01:50]} 30. Ke2 {[%clk 0:01:20]}  Nxf1 {[%clk 0:01:51]} 31. Kxf1 {[%clk 0:01:15]}  Nxb2 {[%clk 0:01:51]} 32. Nxb6 {[%clk 0:01:15]}  Bf8 {[%clk 0:01:51]} 33. Ke2 {[%clk 0:01:12]}  Bc5 {[%clk 0:01:51]} 34. Nd7 {[%clk 0:01:12]}  Be7 {[%clk 0:01:49]} 35. Nb6 {[%clk 0:01:11]}  Bd8 {[%clk 0:01:49]} 36. Nd5 {[%clk 0:01:09]}  Nxa4 {[%clk 0:01:50]} 37. Kd3 {[%clk 0:01:04]}  Nb2+ {[%clk 0:01:50]} 38. Kc2 {[%clk 0:01:04]}  Nc4 {[%clk 0:01:51]} 39. Kd3 {[%clk 0:01:05]}  Nd6 {[%clk 0:01:51]} 40. g4 {[%clk 0:01:06]}  a4 {[%clk 0:01:52]} 41. c4 {[%clk 0:01:03]}  a3 {[%clk 0:01:52]} 42. Nc3 {[%clk 0:01:01]}  e4+ {[%clk 0:01:50]} 43. Kd4 {[%clk 0:00:58]}  Ba5 {[%clk 0:01:41]} 44. Na2 {[%clk 0:00:58]}  Bb6+ {[%clk 0:01:36]} 45. c5 {[%clk 0:00:58]}  Bxc5+ {[%clk 0:01:35]} 46. Kxc5 {[%clk 0:00:59]}  e3 {[%clk 0:01:36]} 0-1


[Site "https://www.chess.com"]

[Event "Titled Tuesday Blitz January 03 Early 2023"]
[White "Redzisz, Michal"]
[Black "Makhmudov, Shukhrat"]
[WhiteFideId "21816107"]
[BlackFideId "14200775"]
[WhiteElo "2269"]
[BlackElo "2115"]
[Result "0-1"]
[Round "03"]
[TimeControl "180+2"]
[Date "2023.01.03"]
[WhiteClock "0:00:27"]
[BlackClock "0:01:01"]

1. e4 {[%clk 0:02:56]}  e5 {[%clk 0:02:59]} 2. Nf3 {[%clk 0:02:57]}  Nc6 {[%clk 0:02:58]} 3. Bc4 {[%clk 0:02:57]}  Nf6 {[%clk 0:02:58]} 4. d3 {[%clk 0:02:55]}  Bc5 {[%clk 0:02:57]} 5. O-O {[%clk 0:02:55]}  Bb6 {[%clk 0:02:58]} 6. Nbd2 {[%clk 0:02:54]}  d6 {[%clk 0:02:57]} 7. c3 {[%clk 0:02:54]}  Ne7 {[%clk 0:02:57]} 8. h3 {[%clk 0:02:54]}  c6 {[%clk 0:02:57]} 9. Re1 {[%clk 0:02:53]}  Ng6 {[%clk 0:02:57]} 10. Nf1 {[%clk 0:02:52]}  O-O {[%clk 0:02:56]} 11. d4 {[%clk 0:02:51]}  exd4 {[%clk 0:02:52]} 12. cxd4 {[%clk 0:02:52]}  Nxe4 {[%clk 0:02:52]} 13. Bxf7+ {[%clk 0:02:02]}  Rxf7 {[%clk 0:02:52]} 14. Rxe4 {[%clk 0:02:03]}  Bf5 {[%clk 0:02:51]} 15. Re1 {[%clk 0:02:01]}  d5 {[%clk 0:02:38]} 16. Ng3 {[%clk 0:01:53]}  Bd7 {[%clk 0:02:15]} 17. Ng5 {[%clk 0:01:51]}  Re7 {[%clk 0:02:08]} 18. Bd2 {[%clk 0:01:33]}  Rxe1+ {[%clk 0:01:54]} 19. Qxe1 {[%clk 0:01:34]}  Bxd4 {[%clk 0:01:52]} 20. Qe2 {[%clk 0:01:26]}  Qf6 {[%clk 0:01:39]} 21. Re1 {[%clk 0:00:41]}  Re8 {[%clk 0:01:31]} 22. Qh5 {[%clk 0:00:31]}  Qxf2+ {[%clk 0:01:02]} 23. Kh2 {[%clk 0:00:31]}  Rxe1 {[%clk 0:01:01]} 24. Qxh7+ {[%clk 0:00:27]}  Kf8 {[%clk 0:01:02]} 25. Bxe1 {[%clk 0:00:27]}  Qg1# {[%clk 0:01:01]} 0-1


[Site "https://www.chess.com"]

[Event "Titled Tuesday Blitz January 03 Early 2023"]
[White "Avazkhonov, Alikhon"]
[Black "Tarnowska, Aleksandra"]
[WhiteFideId "14208504"]
[BlackFideId "1180967"]
[WhiteElo "1538"]
[BlackElo "1835"]
[Result "1-0"]
[Round "03"]
[TimeControl "180+2"]
[Date "2023.01.03"]
[WhiteClock "0:01:12"]
[BlackClock "0:00:02"]

1. d4 {[%clk 0:03:00]}  d5 {[%clk 0:02:59]} 2. c4 {[%clk 0:03:01]}  e6 {[%clk 0:03:00]} 3. Nc3 {[%clk 0:03:01]}  Nf6 {[%clk 0:03:00]} 4. cxd5 {[%clk 0:03:02]}  exd5 {[%clk 0:03:00]} 5. Bg5 {[%clk 0:03:02]}  Be7 {[%clk 0:03:00]} 6. e3 {[%clk 0:03:03]}  h6 {[%clk 0:03:01]} 7. Bh4 {[%clk 0:03:02]}  O-O {[%clk 0:03:01]} 8. Bd3 {[%clk 0:03:02]}  Nbd7 {[%clk 0:02:37]} 9. Qc2 {[%clk 0:02:59]}  c6 {[%clk 0:02:33]} 10. Nf3 {[%clk 0:02:57]}  Nb6 {[%clk 0:02:29]} 11. O-O-O {[%clk 0:02:56]}  a5 {[%clk 0:02:15]} 12. Ne5 {[%clk 0:02:54]}  a4 {[%clk 0:02:08]} 13. Kb1 {[%clk 0:02:51]}  a3 {[%clk 0:02:06]} 14. b3 {[%clk 0:02:50]}  Bd7 {[%clk 0:01:56]} 15. Rhg1 {[%clk 0:02:46]}  Nc8 {[%clk 0:01:21]} 16. g4 {[%clk 0:02:34]}  Ne8 {[%clk 0:01:10]} 17. Bxe7 {[%clk 0:02:11]}  Qxe7 {[%clk 0:00:52]} 18. f4 {[%clk 0:02:10]}  Ncd6 {[%clk 0:00:41]} 19. g5 {[%clk 0:02:08]}  h5 {[%clk 0:00:34]} 20. f5 {[%clk 0:02:02]}  Nb5 {[%clk 0:00:22]} 21. Bxb5 {[%clk 0:01:33]}  cxb5 {[%clk 0:00:23]} 22. Nxd5 {[%clk 0:01:34]}  Qd6 {[%clk 0:00:18]} 23. Nxd7 {[%clk 0:01:28]}  Qxd7 {[%clk 0:00:16]} 24. Nb6 {[%clk 0:01:28]}  Qd8 {[%clk 0:00:12]} 25. Nxa8 {[%clk 0:01:29]}  Qxa8 {[%clk 0:00:13]} 26. f6 {[%clk 0:01:29]}  g6 {[%clk 0:00:12]} 27. e4 {[%clk 0:01:29]}  Nd6 {[%clk 0:00:10]} 28. e5 {[%clk 0:01:29]}  Nf5 {[%clk 0:00:10]} 29. Qd3 {[%clk 0:01:24]}  Qa5 {[%clk 0:00:07]} 30. d5 {[%clk 0:01:21]}  Rc8 {[%clk 0:00:07]} 31. Rc1 {[%clk 0:01:20]}  Re8 {[%clk 0:00:05]} 32. d6 {[%clk 0:01:18]}  Qd8 {[%clk 0:00:02]} 33. d7 {[%clk 0:01:16]}  Rxe5 {[%clk 0:00:02]} 34. Rc8 {[%clk 0:01:12]} 1-0


[Site "https://www.chess.com"]

[Event "Titled Tuesday Blitz January 03 Early 2023"]
[White "Dudzinski, Pawel"]
[Black "De Souza, Cristiano Gomes"]
[WhiteFideId "1117890"]
[BlackFideId "2151758"]
[WhiteElo "2186"]
[BlackElo "2018"]
[Result "1/2-1/2"]
[Round "03"]
[TimeControl "180+2"]
[Date "2023.01.03"]
[WhiteClock "0:01:35"]
[BlackClock "0:02:03"]

1. e4 {[%clk 0:03:00]}  c5 {[%clk 0:02:58]} 2. Nc3 {[%clk 0:03:00]}  d6 {[%clk 0:02:58]} 3. g3 {[%clk 0:03:01]}  a6 {[%clk 0:02:57]} 4. a4 {[%clk 0:03:00]}  Nc6 {[%clk 0:02:56]} 5. Bg2 {[%clk 0:03:00]}  g6 {[%clk 0:02:56]} 6. Nge2 {[%clk 0:03:00]}  Bg7 {[%clk 0:02:56]} 7. O-O {[%clk 0:02:58]}  Nf6 {[%clk 0:02:56]} 8. d4 {[%clk 0:02:55]}  cxd4 {[%clk 0:02:55]} 9. Nxd4 {[%clk 0:02:56]}  O-O {[%clk 0:02:54]} 10. Nxc6 {[%clk 0:02:54]}  bxc6 {[%clk 0:02:54]} 11. e5 {[%clk 0:02:53]}  dxe5 {[%clk 0:02:53]} 12. Bxc6 {[%clk 0:02:50]}  Rb8 {[%clk 0:02:53]} 13. Qxd8 {[%clk 0:02:41]}  Rxd8 {[%clk 0:02:51]} 14. Bg2 {[%clk 0:02:35]}  Bf5 {[%clk 0:02:49]} 15. Re1 {[%clk 0:02:28]}  Bxc2 {[%clk 0:02:43]} 16. Rxe5 {[%clk 0:02:28]}  e6 {[%clk 0:02:40]} 17. Re2 {[%clk 0:02:20]}  Bd3 {[%clk 0:02:39]} 18. Rd2 {[%clk 0:02:17]}  Bc4 {[%clk 0:02:39]} 19. Rxd8+ {[%clk 0:02:15]}  Rxd8 {[%clk 0:02:38]} 20. Bg5 {[%clk 0:02:15]}  h6 {[%clk 0:02:38]} 21. Be3 {[%clk 0:02:09]}  Ng4 {[%clk 0:02:35]} 22. Bb7 {[%clk 0:02:03]}  Nxe3 {[%clk 0:02:32]} 23. fxe3 {[%clk 0:02:03]}  Rd2 {[%clk 0:02:30]} 24. Nd1 {[%clk 0:01:50]}  Bb3 {[%clk 0:02:24]} 25. Bf3 {[%clk 0:01:49]}  Bxd1 {[%clk 0:02:12]} 26. Rxd1 {[%clk 0:01:48]}  Rxd1+ {[%clk 0:02:11]} 27. Bxd1 {[%clk 0:01:49]}  Bxb2 {[%clk 0:02:10]} 28. Be2 {[%clk 0:01:47]}  a5 {[%clk 0:02:10]} 29. Kf2 {[%clk 0:01:47]}  f5 {[%clk 0:02:09]} 30. g4 {[%clk 0:01:44]}  Kf7 {[%clk 0:02:09]} 31. gxf5 {[%clk 0:01:44]}  exf5 {[%clk 0:02:10]} 32. e4 {[%clk 0:01:43]}  Kf6 {[%clk 0:02:09]} 33. exf5 {[%clk 0:01:43]}  Kxf5 {[%clk 0:02:10]} 34. Bd3+ {[%clk 0:01:43]}  Kg5 {[%clk 0:02:10]} 35. Kf3 {[%clk 0:01:41]}  Be5 {[%clk 0:02:09]} 36. h3 {[%clk 0:01:37]}  Kf6 {[%clk 0:02:07]} 37. Be4 {[%clk 0:01:35]}  h5 {[%clk 0:02:08]} 38. Bd3 {[%clk 0:01:34]}  g5 {[%clk 0:02:08]} 39. Be4 {[%clk 0:01:34]}  Bc3 {[%clk 0:02:08]} 40. Bd3 {[%clk 0:01:34]}  Bb4 {[%clk 0:02:07]} 41. Be4 {[%clk 0:01:34]}  Ke5 {[%clk 0:02:06]} 42. Bg6 {[%clk 0:01:33]}  h4 {[%clk 0:02:04]} 43. Kg4 {[%clk 0:01:33]}  Bd2 {[%clk 0:02:04]} 44. Be8 {[%clk 0:01:33]}  Kd4 {[%clk 0:02:02]} 45. Bb5 {[%clk 0:01:33]}  Kc3 {[%clk 0:02:01]} 46. Be8 {[%clk 0:01:33]}  Kb3 {[%clk 0:02:01]} 47. Bb5 {[%clk 0:01:33]}  Bf4 {[%clk 0:02:01]} 48. Be8 {[%clk 0:01:34]}  Kb4 {[%clk 0:02:01]} 49. Bb5 {[%clk 0:01:34]}  Kc5 {[%clk 0:02:01]} 50. Be8 {[%clk 0:01:34]}  Kb4 {[%clk 0:02:02]} 51. Bb5 {[%clk 0:01:34]}  Kc5 {[%clk 0:02:02]} 52. Be8 {[%clk 0:01:35]}  Kb4 {[%clk 0:02:03]} 1/2-1/2


[Site "https://www.chess.com"]

[Event "Titled Tuesday Blitz January 03 Early 2023"]
[White "Broca Jimenez, Fernando"]
[Black "Arpita, Mukherjee"]
[WhiteFideId "5104742"]
[BlackFideId "5056403"]
[WhiteElo "2075"]
[BlackElo "2203"]
[Result "0-1"]
[Round "03"]
[TimeControl "180+2"]
[Date "2023.01.03"]
[WhiteClock "0:00:01"]
[BlackClock "0:01:36"]

1. e4 {[%clk 0:03:00]}  c5 {[%clk 0:02:57]} 2. c3 {[%clk 0:03:00]}  Nf6 {[%clk 0:02:55]} 3. e5 {[%clk 0:03:00]}  Nd5 {[%clk 0:02:50]} 4. d4 {[%clk 0:03:01]}  cxd4 {[%clk 0:02:48]} 5. Nf3 {[%clk 0:03:02]}  Nc6 {[%clk 0:02:45]} 6. Bc4 {[%clk 0:03:02]}  Nb6 {[%clk 0:02:44]} 7. Bb3 {[%clk 0:02:58]}  dxc3 {[%clk 0:02:35]} 8. Nxc3 {[%clk 0:02:59]}  e6 {[%clk 0:02:35]} 9. O-O {[%clk 0:02:10]}  Be7 {[%clk 0:02:33]} 10. Qe2 {[%clk 0:02:05]}  O-O {[%clk 0:02:33]} 11. Rd1 {[%clk 0:02:04]}  Qc7 {[%clk 0:02:32]} 12. Nb5 {[%clk 0:01:55]}  Qb8 {[%clk 0:02:30]} 13. Bg5 {[%clk 0:01:43]}  f5 {[%clk 0:02:17]} 14. Bxe7 {[%clk 0:01:15]}  Nxe7 {[%clk 0:02:18]} 15. Nd6 {[%clk 0:01:07]}  Nbd5 {[%clk 0:02:16]} 16. Rac1 {[%clk 0:00:58]}  b6 {[%clk 0:02:11]} 17. Nd4 {[%clk 0:00:20]}  Bb7 {[%clk 0:02:09]} 18. Rd3 {[%clk 0:00:20]}  Nf4 {[%clk 0:02:08]} 19. Qe3 {[%clk 0:00:20]}  Nxd3 {[%clk 0:02:07]} 20. Qxd3 {[%clk 0:00:21]}  Bd5 {[%clk 0:02:07]} 21. Bc2 {[%clk 0:00:21]}  Ng6 {[%clk 0:02:04]} 22. Qh3 {[%clk 0:00:20]}  Nxe5 {[%clk 0:02:03]} 23. N6xf5 {[%clk 0:00:16]}  exf5 {[%clk 0:01:59]} 24. Nxf5 {[%clk 0:00:17]}  Ng6 {[%clk 0:01:44]} 25. Ne7+ {[%clk 0:00:14]}  Nxe7 {[%clk 0:01:44]} 26. Qxh7+ {[%clk 0:00:12]}  Kf7 {[%clk 0:01:45]} 27. Qh5+ {[%clk 0:00:12]}  g6 {[%clk 0:01:42]} 28. Qh7+ {[%clk 0:00:06]}  Ke8 {[%clk 0:01:42]} 29. Re1 {[%clk 0:00:07]}  Qd6 {[%clk 0:01:40]} 30. Bxg6+ {[%clk 0:00:04]}  Kd8 {[%clk 0:01:40]} 31. Qg7 {[%clk 0:00:04]}  Qf6 {[%clk 0:01:37]} 32. Qh7 {[%clk 0:00:01]}  Qxf2+ {[%clk 0:01:36]} 0-1


[Site "https://www.chess.com"]

[Event "Titled Tuesday Blitz January 03 Early 2023"]
[White "Kniazev, Igor"]
[Black "Novikova, Galina"]
[WhiteFideId "4136349"]
[BlackFideId "4157095"]
[WhiteElo "2057"]
[BlackElo "2073"]
[Result "0-1"]
[Round "03"]
[TimeControl "180+2"]
[Date "2023.01.03"]
[WhiteClock "0:01:18"]
[BlackClock "0:00:24"]

1. e4 {[%clk 0:02:45]}  e6 {[%clk 0:02:59]} 2. d4 {[%clk 0:02:45]}  d5 {[%clk 0:03:00]} 3. exd5 {[%clk 0:02:44]}  exd5 {[%clk 0:02:59]} 4. Nf3 {[%clk 0:02:45]}  Bg4 {[%clk 0:03:00]} 5. h3 {[%clk 0:02:45]}  Bh5 {[%clk 0:03:00]} 6. Nc3 {[%clk 0:02:39]}  Nf6 {[%clk 0:02:59]} 7. Bf4 {[%clk 0:02:39]}  c6 {[%clk 0:02:58]} 8. Qe2+ {[%clk 0:02:39]}  Be7 {[%clk 0:02:58]} 9. O-O-O {[%clk 0:02:40]}  O-O {[%clk 0:02:58]} 10. g4 {[%clk 0:02:40]}  Bg6 {[%clk 0:02:58]} 11. Bg2 {[%clk 0:02:40]}  Bb4 {[%clk 0:02:57]} 12. Nb1 {[%clk 0:02:24]}  a5 {[%clk 0:02:53]} 13. c3 {[%clk 0:02:17]}  Bd6 {[%clk 0:02:52]} 14. Ne5 {[%clk 0:02:15]}  b5 {[%clk 0:02:50]} 15. Nxg6 {[%clk 0:02:13]}  hxg6 {[%clk 0:02:48]} 16. Bxd6 {[%clk 0:02:13]}  Qxd6 {[%clk 0:02:49]} 17. Qe5 {[%clk 0:02:13]}  Qd8 {[%clk 0:02:38]} 18. Rhe1 {[%clk 0:02:11]}  b4 {[%clk 0:02:35]} 19. g5 {[%clk 0:02:09]}  Nh5 {[%clk 0:02:16]} 20. c4 {[%clk 0:02:06]}  dxc4 {[%clk 0:02:06]} 21. d5 {[%clk 0:01:58]}  Nd7 {[%clk 0:02:00]} 22. Qd6 {[%clk 0:01:57]}  Qxg5+ {[%clk 0:01:57]} 23. Nd2 {[%clk 0:01:53]}  Qxg2 {[%clk 0:01:51]} 24. Qxd7 {[%clk 0:01:53]}  Qxd5 {[%clk 0:01:51]} 25. Ne4 {[%clk 0:01:47]}  Qxd7 {[%clk 0:01:06]} 26. Rxd7 {[%clk 0:01:48]}  Rad8 {[%clk 0:01:06]} 27. Red1 {[%clk 0:01:37]}  Rxd7 {[%clk 0:00:55]} 28. Rxd7 {[%clk 0:01:38]}  Nf4 {[%clk 0:00:53]} 29. h4 {[%clk 0:01:37]}  Nd3+ {[%clk 0:00:52]} 30. Kd2 {[%clk 0:01:36]}  Nxb2 {[%clk 0:00:42]} 31. Rc7 {[%clk 0:01:36]}  c3+ {[%clk 0:00:43]} 32. Kc2 {[%clk 0:01:36]}  Re8 {[%clk 0:00:37]} 33. Ng5 {[%clk 0:01:30]}  f6 {[%clk 0:00:37]} 34. Nf7 {[%clk 0:01:26]}  Re2+ {[%clk 0:00:32]} 35. Kb3 {[%clk 0:01:26]}  Nd3 {[%clk 0:00:26]} 36. Ng5 {[%clk 0:01:16]}  fxg5 {[%clk 0:00:25]} 37. Rxc6 {[%clk 0:01:16]}  Rb2+ {[%clk 0:00:23]} 38. Ka4 {[%clk 0:01:16]}  c2 {[%clk 0:00:22]} 39. Kb5 {[%clk 0:01:17]}  c1=Q {[%clk 0:00:22]} 40. Rxc1 {[%clk 0:01:16]}  Nxc1 {[%clk 0:00:23]} 41. hxg5 {[%clk 0:01:17]}  Rxa2 {[%clk 0:00:22]} 42. Kc4 {[%clk 0:01:17]}  b3 {[%clk 0:00:23]} 43. Kc3 {[%clk 0:01:17]}  Rc2+ {[%clk 0:00:23]} 44. Kd4 {[%clk 0:01:16]}  b2 {[%clk 0:00:23]} 45. f4 {[%clk 0:01:16]}  b1=Q {[%clk 0:00:23]} 46. Ke5 {[%clk 0:01:17]}  Qb5+ {[%clk 0:00:23]} 47. Ke4 {[%clk 0:01:18]}  Re2+ {[%clk 0:00:23]} 48. Kf3 {[%clk 0:01:18]}  Qd3+ {[%clk 0:00:24]} 49. Kg4 {[%clk 0:01:19]}  Rg2+ {[%clk 0:00:24]} 50. Kh4 {[%clk 0:01:18]}  Qg3# {[%clk 0:00:24]} 0-1


[Site "https://www.chess.com"]